bitfinex/quotes_ETHUSD_20250823
["timestamp","ask_amount","ask_price","bid_price","bid_amount"]
[1755970477034,0.02,4744.8,4744.7,0.4402]
[1755970477197,0.02,4744.8,4744.7,0.7477]
[1755970477799,0.02,4744.8,4744.7,2.85531481]
[1755970478327,0.02,4744.8,4744.7,2.96091481]
[1755970481531,0.02,4744.8,4744.7,0.4131]
[1755970481730,0.02,4744.8,4744.7,1.53940325]
[1755970482120,0.02,4744.8,4744.7,3.64701806]
[1755970482938,0.02,4744.8,4744.7,1.53940325]
[1755970483438,0.02,4744.8,4744.7,3.64701806]
[1755970483836,0.02,4744.8,4744.7,1.53940325]
[1755970484036,0.02,4744.8,4744.7,0.1056]
[1755970484332,0.3196,4744.8,4744.7,0.1056]
[1755970486607,0.3196,4744.8,4744.7,2.21321481]
[1755970486806,0.02,4744.8,4744.7,2.21321481]
[1755970487216,0.02,4744.8,4744.7,2.52071481]
[1755970487418,0.02,4744.8,4744.7,3.50155598]
[1755970488742,0.02,4744.8,4744.7,1.39394117]
[1755970489041,0.02,4744.8,4744.7,3.50155598]
[1755970489541,0.02,4744.8,4744.7,1.39394117]
[1755970489847,0.3236,4744.8,4744.7,1.08644117]
[1755970490337,0.7775,4744.8,4744.7,1.08644117]
[1755970490702,0.3236,4744.8,4744.7,1.08644117]
[1755970491938,0.3236,4744.8,4744.7,0.1056]
[1755970492137,0.7775,4744.8,4744.7,0.1056]
[1755970492742,0.3236,4744.8,4744.7,0.1056]
[1755970493408,0.02,4744.8,4744.7,0.1056]
[1755970493611,0.3236,4744.8,4744.7,0.1056]
[1755970493809,0.3256,4744.8,4744.7,0.1056]
[1755970495852,0.7795,4744.8,4744.7,3.55]
[1755970497959,0.7795,4744.8,4744.6,1.621]
[1755970498173,0.4539,4744.7,4744.6,3.55]
[1755970498447,3.8631,4744.7,4744.6,3.55]
[1755970498613,4.94992511,4744.7,4744.6,3.55]
[1755970499551,4.496678,4744.7,4744.6,3.55]
[1755970499724,4.94972162,4744.7,4744.6,3.55]
[1755970500249,4.94972162,4744.7,4743.8,1.622]
[1755970500250,4.94972162,4744.7,4744.3,3.55]
[1755970500556,0.1056,4744.4,4744.3,3.55]
[1755970500765,0.1056,4744.4,4744.1,3.55]
[1755970500968,0.8631,4744.4,4744.1,3.55]
[1755970501130,0.4092,4744.4,4744.1,3.55]
[1755970501330,0.4539,4744.3,4744.1,3.55]
[1755970501664,0.7575,4744.2,4744.1,3.55]
[1755970502453,0.3036,4744.2,4744.1,3.55]
[1755970503629,0.1056,4744.4,4744.1,3.55]
[1755970507665,0.3036,4744.2,4744.1,3.55]
[1755970507864,0.5595,4744.4,4744.1,3.55]
[1755970508181,0.1056,4744.4,4744.1,3.8428]
[1755970509786,0.1056,4744.4,4744.1,3.55]
[1755970509952,0.3036,4744.2,4744.1,3.55]
[1755970510693,0.7575,4744.2,4744.1,3.55]
[1755970511199,0.3036,4744.2,4743.8,1.622]
[1755970511363,0.3036,4744.2,4743.8,0.001]
[1755970511364,0.1056,4743.9,4743.8,0.001]
[1755970511700,0.4092,4743.9,4743.8,0.001]
[1755970511870,0.8631,4743.9,4743.8,0.001]
[1755970516182,0.4092,4743.9,4743.8,0.001]
[1755970516375,0.1056,4743.9,4743.8,0.001]
[1755970517577,0.3897,4743.9,4743.8,0.001]
[1755970519431,0.002,4744.4,4743.8,4.3013]
[1755970519579,0.002,4744.4,4743.9,0.87483]
[1755970519780,0.002,4744.4,4744.3,0.3056]
[1755970520683,0.002,4744.4,4744.3,0.7503]
[1755970525611,0.002,4744.4,4744.3,0.3056]
[1755970526938,0.002,4744.4,4744.3,0.7503]
[1755970528218,0.002,4744.4,4744.3,0.3056]
[1755970532612,0.002,4744.4,4744.3,0.8559]
[1755970532814,0.002,4744.4,4744.3,2.9636925]
[1755970534311,0.002,4744.4,4744.3,3.47085373]
[1755970535034,0.002,4744.4,4744.3,7.01985373]
[1755970535234,0.002,4744.4,4744.3,4.91206123]
[1755970535638,0.002,4744.4,4744.3,7.01985373]
[1755970538126,0.002,4744.4,4744.3,7.10430773]
[1755970553086,0.002,4744.4,4744.3,10.76430773]
[1755970563603,1e-08,4744.4,4744.3,17.44140601]
[1755970563812,1e-08,4744.4,4744.3,17.87570601]
[1755970565179,0.002,4744.9,4744.8,2.10757039]
[1755970565398,1e-08,4744.9,4744.8,10.04390224]
[1755970565671,1e-08,4744.9,4744.8,10.47820224]
[1755970565868,1e-08,4744.9,4744.8,10.58380224]
[1755970566069,1e-08,4744.9,4744.8,10.66822824]
[1755970567313,1e-08,4745.4,4745.3,0.66]
[1755970567473,1e-08,4745.4,4745.3,11.88488759]
[1755970567797,1e-08,4745.4,4745.3,12.42478759]
[1755970568175,1e-08,4745.4,4745.3,12.89748759]
[1755970569105,0.4727,4746.9,4746.7,2.10672677]
[1755970569271,0.4727,4746.9,4746.7,7.69407874]
[1755970569272,0.3233,4746.8,4746.7,7.69407874]
[1755970569472,0.796,4746.8,4746.7,7.79967874]
[1755970569703,0.3233,4746.8,4746.7,7.79967874]
[1755970570217,0.796,4746.8,4746.7,7.79967874]
[1755970571178,0.3233,4746.8,4746.7,7.79967874]
[1755970571714,0.3233,4746.8,4746.7,10.79967874]
[1755970572215,0.022,4746.8,4746.7,11.45967874]
[1755970572574,0.3233,4746.8,4746.7,11.45967874]
[1755970573384,0.022,4746.8,4746.7,11.45967874]
[1755970573597,0.022,4746.8,4746.7,12.20277874]
[1755970578797,0.022,4746.8,4746.7,12.67547874]
[1755970580913,0.022,4746.8,4746.7,12.24117874]
[1755970581113,0.002,4747.3,4747.2,2.10650488]
[1755970581410,0.002,4747.3,4747.2,10.34742361]
[1755970581616,0.002,4747.3,4747.2,10.45302361]
[1755970581802,0.002,4747.3,4747.2,10.34742361]
[1755970582190,0.2869,4747.3,4747.2,10.03182361]
[1755970582387,0.2869,4747.3,4747.2,10.66475661]
[1755970583715,0.002,4747.3,4747.2,10.66475661]
[1755970583896,0.002,4747.3,4747.2,10.98035661]
[1755970584303,0.4774,4747.8,4747.7,2.10628304]
[1755970584523,0.7852,4747.8,4747.7,7.69054603]
[1755970585333,0.022,4747.8,4747.7,8.35054603]
[1755970586018,0.3298,4747.8,4747.7,4.14754603]
[1755970586217,0.7852,4747.8,4747.7,7.69054603]
[1755970586580,0.022,4747.8,4747.7,8.00614603]
[1755970586782,0.022,4747.8,4747.7,11.66614603]
[1755970586982,1e-08,4747.8,4747.7,12.10224603]
[1755970591038,1e-08,4747.8,4747.7,7.80754603]
[1755970591243,0.30780001,4747.8,4747.7,11.35054603]
[1755970591610,1e-08,4747.8,4747.7,11.66614603]
[1755970591810,1e-08,4747.8,4747.7,12.20784603]
[1755970592511,1e-08,4747.8,4747.7,12.66324603]
[1755970595547,1e-08,4747.8,4747.7,12.99194522]
[1755970597013,0.002,4748.8,4748.7,5.76583949]
[1755970597014,1e-08,4748.8,4748.7,5.76583949]
[1755970597220,1e-08,4748.8,4748.7,11.81902344]
[1755970597415,1e-08,4748.8,4748.7,11.92462344]
[1755970597643,1e-08,4748.8,4748.7,12.36072344]
[1755970597838,1e-08,4748.8,4748.7,12.38002344]
[1755970598621,1e-08,4748.8,4748.7,12.81612344]
[1755970599253,1e-08,4748.8,4748.7,12.38002344]
[1755970600465,1e-08,4748.8,4748.7,12.81612344]
[1755970603836,1e-08,4748.8,4748.7,8.83802344]
[1755970604158,0.02,4749.8,4749.7,2.10539613]
[1755970604458,0.3278,4749.8,4749.7,7.26539613]
[1755970604658,0.3278,4749.8,4749.7,7.37099613]
[1755970604826,0.7523,4749.8,4749.7,7.37099613]
[1755970605026,0.7523,4749.8,4749.7,3.82999613]
[1755970605253,0.7523,4749.8,4749.7,7.37099613]
[1755970605560,0.7523,4749.8,4749.7,8.57473916]
[1755970605855,0.7523,4749.8,4749.7,9.20738616]
[1755970606054,0.3278,4749.8,4749.7,9.20738616]
[1755970606258,0.7523,4749.8,4749.7,9.20738616]
[1755970607963,0.3278,4749.8,4749.7,9.20738616]
[1755970608161,0.02,4749.8,4749.7,9.86738616]
[1755970608347,0.02,4749.8,4749.7,13.18298616]
[1755970608552,0.02,4749.8,4749.7,13.61818616]
[1755970609078,1e-08,4749.8,4749.7,13.18298616]
[1755970609257,1e-08,4749.8,4749.7,13.61818616]
[1755970609628,1e-08,4749.8,4749.7,13.18298616]
[1755970610327,1e-08,4749.8,4749.7,20.73998444]
[1755970612273,1e-08,4749.8,4749.7,9.32638616]
[1755970612474,1e-08,4749.8,4749.7,12.86638616]
[1755970613043,1e-08,4749.8,4749.7,13.16508616]
[1755970614701,1e-08,4749.8,4749.7,12.86638616]
[1755970615401,0.002,4750.3,4750.2,2.10517451]
[1755970615605,0.004,4750.3,4750.2,9.36621581]
[1755970615899,0.004,4750.3,4750.2,9.47181581]
[1755970616288,0.004,4750.3,4750.2,9.67161581]
[1755970617475,0.002,4750.3,4750.2,9.67161581]
[1755970618105,0.004,4750.3,4750.2,9.67161581]
[1755970619187,0.004,4750.3,4750.2,6.13161581]
[1755970619377,0.004,4750.3,4750.2,9.67061581]
[1755970620562,0.004,4750.3,4750.2,6.13161581]
[1755970620797,0.004,4750.3,4750.2,9.67061581]
[1755970622902,0.002,4750.3,4750.2,10.62931581]
[1755970623097,0.002,4750.3,4750.2,7.52551581]
[1755970623604,0.002,4750.3,4750.2,10.33061581]
[1755970624100,0.002,4750.3,4750.2,6.79161581]
[1755970624304,0.002,4750.3,4750.2,10.33061581]
[1755970627204,0.002,4750.3,4750.2,6.79161581]
[1755970627390,0.002,4750.3,4750.2,10.33061581]
[1755970627901,0.004,4750.3,4750.2,10.33061581]
[1755970628099,0.004,4750.3,4750.2,6.79161581]
[1755970628300,0.004,4750.3,4750.2,10.33061581]
[1755970631222,0.004,4750.3,4750.2,10.32961581]
[1755970632609,0.004,4750.3,4750.2,10.62831581]
[1755970632610,0.002,4750.3,4750.2,10.62831581]
[1755970632810,0.002,4750.3,4750.2,11.06351581]
[1755970636207,0.022,4750.8,4750.7,5.76495295]
[1755970636400,0.022,4750.8,4750.7,12.11224985]
[1755970636808,0.022,4750.8,4750.7,12.54744985]
[1755970637532,0.022,4750.8,4750.7,12.63177785]
[1755970638626,0.022,4750.8,4750.7,9.09377785]
[1755970638813,0.022,4750.8,4750.7,12.63177785]
[1755970639213,1e-08,4750.8,4750.7,12.63177785]
[1755970641010,1e-08,4751.3,4751.2,5.76473143]
[1755970641211,1e-08,4751.3,4751.2,10.19120457]
[1755970641410,1e-08,4751.3,4751.2,10.73460457]
[1755970641943,1e-08,4751.3,4751.2,10.81891057]
[1755970642230,1e-08,4751.3,4751.2,10.81791057]
[1755970642609,1e-08,4751.8,4751.7,5.76450996]
[1755970642813,1e-08,4751.8,4751.7,11.23150996]
[1755970643015,1e-08,4751.8,4751.7,11.77490996]
[1755970643738,1e-08,4751.8,4751.7,12.14420996]
[1755970644036,1e-08,4751.8,4751.7,14.28608796]
[1755970645253,1e-08,4751.8,4751.7,9.99928796]
[1755970645618,1e-08,4751.8,4751.7,13.53628796]
[1755970645813,1e-08,4751.8,4751.7,14.28608796]
[1755970646217,1e-08,4751.8,4751.7,14.18048796]
[1755970646732,1e-08,4751.8,4751.7,14.50918715]
[1755970646935,1e-08,4751.8,4751.7,10.97218715]
[1755970647164,1e-08,4751.8,4751.7,14.18048796]
[1755970647305,1e-08,4751.8,4751.7,14.47056975]
[1755970647501,1e-08,4751.8,4751.7,21.63098543]
[1755970647935,1e-08,4751.8,4751.7,18.09398543]
[1755970648121,1e-08,4751.8,4751.7,21.63098543]
[1755970649128,1e-08,4751.8,4751.7,21.30228624]
[1755970650348,1e-08,4751.8,4751.7,21.30128624]
[1755970650751,1e-08,4751.8,4751.7,21.62998543]
[1755970656328,1e-08,4751.8,4751.7,21.73558543]
[1755970658730,1e-08,4751.8,4751.7,21.40688624]
[1755970660258,1e-08,4751.8,4751.7,25.65688624]
[1755970664374,1e-08,4751.8,4751.7,24.90608624]
[1755970665179,1e-08,4751.8,4751.7,25.21808624]
[1755970665380,1e-08,4751.8,4751.7,25.65588624]
[1755970667084,1e-08,4751.8,4751.7,22.12088624]
[1755970667391,1e-08,4751.8,4751.7,25.65588624]
[1755970667593,1e-08,4751.8,4751.7,25.98459201]
[1755970669010,1e-08,4751.8,4751.7,22.44959201]
[1755970669165,1e-08,4751.8,4751.7,25.23479201]
[1755970669496,1e-08,4751.8,4751.7,17.78428796]
[1755970669893,1e-08,4751.8,4751.7,13.58928796]
[1755970670103,0.27030001,4751.8,4751.7,17.12428796]
[1755970670271,0.27030001,4751.8,4751.7,14.12428796]
[1755970670466,0.27030001,4751.8,4751.7,17.12428796]
[1755970670807,1e-08,4751.8,4751.7,14.24928796]
[1755970671008,0.27030001,4751.8,4751.7,10.53428796]
[1755970671304,0.27030001,4751.8,4751.7,9.87428796]
[1755970671802,0.27030001,4751.8,4751.7,10.53428796]
[1755970672304,1e-08,4751.8,4751.7,13.53428796]
[1755970676805,0.022,4752.8,4752.7,2.10406716]
[1755970676989,0.0247,4752.8,4752.7,10.57307388]
[1755970677306,0.0247,4752.8,4752.7,10.77023717]
[1755970677900,0.0247,4752.8,4752.7,11.43023717]
[1755970678208,0.0247,4752.8,4752.7,11.23307388]
[1755970678408,0.0247,4752.8,4752.7,11.49897388]
[1755970679919,0.022,4752.8,4752.7,11.49897388]
[1755970680080,0.0273,4752.8,4752.7,11.49897388]
[1755970680480,0.0273,4752.8,4752.7,4.09356716]
[1755970680481,0.2906,4752.8,4752.7,4.09356716]
[1755970680721,0.2906,4752.8,4752.7,7.36266716]
[1755970681329,0.0273,4752.8,4752.7,7.36266716]
[1755970682221,0.2906,4752.8,4752.7,7.36266716]
[1755970682526,0.0273,4752.8,4752.7,7.36266716]
[1755970682685,0.022,4752.8,4752.7,8.33567708]
[1755970682887,0.0247,4752.8,4752.7,8.33567708]
[1755970683928,0.0247,4752.8,4752.7,11.33567708]
[1755970684825,0.2906,4752.8,4752.7,11.33567708]
[1755970685029,0.2906,4752.8,4752.7,10.36266716]
[1755970685590,0.2906,4752.8,4752.7,6.82766716]
[1755970685791,0.2906,4752.8,4752.7,7.36266716]
[1755970686240,0.0247,4752.8,4752.7,3.82766716]
[1755970686395,0.2906,4752.8,4752.7,7.36266716]
[1755970686728,0.2906,4752.8,4752.7,3.82766716]
[1755970686926,0.2906,4752.8,4752.7,7.36266716]
[1755970687224,0.0247,4752.8,4752.7,7.36266716]
[1755970687536,0.022,4752.8,4752.7,8.30934708]
[1755970688022,0.1226,4752.8,4752.7,8.30934708]
[1755970688628,0.1226,4752.8,4752.7,7.36266716]
[1755970688828,0.1226,4752.8,4752.7,3.82766716]
[1755970689016,0.1226,4752.8,4752.7,7.36266716]
[1755970694829,0.1226,4752.8,4752.7,3.82766716]
[1755970695040,0.1226,4752.8,4752.7,7.36266716]
[1755970698865,0.022,4752.8,4752.7,7.36266716]
[1755970699220,0.022,4752.8,4752.7,8.09076716]
[1755970699724,0.022,4752.8,4752.7,9.07013147]
[1755970700850,0.022,4752.8,4752.7,12.07013147]
[1755970701634,0.022,4752.8,4752.7,12.15443047]
[1755970702930,0.022,4752.8,4752.7,12.81443047]
[1755970704132,1e-08,4752.8,4752.7,12.81443047]
[1755970705556,0.00270001,4752.8,4752.7,8.42533047]
[1755970705737,0.00270001,4752.8,4752.7,7.44596616]
[1755970705945,0.00270001,4752.8,4752.7,3.82766716]
[1755970706436,0.26700001,4752.8,4752.7,1.7236]
[1755970706664,0.26700001,4752.8,4752.7,5.2576]
[1755970707045,0.26700001,4752.8,4752.7,1.7236]
[1755970707253,0.26700001,4752.8,4752.7,5.2576]
[1755970707956,0.00270001,4752.8,4752.7,1.7236]
[1755970708158,0.27300001,4752.8,4752.7,5.2576]
[1755970709279,0.27300001,4752.8,4752.7,1.618]
[1755970709577,0.27300001,4752.8,4752.7,5.152]
[1755970709942,0.27300001,4752.8,4752.7,1.618]
[1755970710467,0.00270001,4752.8,4752.7,5.152]
[1755970710772,0.27300001,4752.8,4752.7,5.152]
[1755970710939,0.27300001,4752.8,4752.7,1.618]
[1755970711272,0.27300001,4752.8,4752.7,5.152]
[1755970712640,0.27300001,4752.8,4752.7,1.618]
[1755970712840,0.27300001,4752.8,4752.7,5.152]
[1755970714035,0.00270001,4752.8,4752.7,5.152]
[1755970717160,0.00270001,4752.8,4752.7,1.618]
[1755970717365,0.00270001,4752.8,4752.7,5.152]
[1755970717673,1e-08,4752.8,4752.7,5.152]
[1755970717837,1e-08,4752.8,4752.7,7.98416716]
[1755970720868,1e-08,4752.8,4752.7,5.8801]
[1755970721171,1e-08,4752.8,4752.7,7.98416716]
[1755970722172,1e-08,4752.8,4752.7,5.152]
[1755970722369,0.09630001,4752.8,4752.7,5.152]
[1755970722770,1e-08,4752.8,4752.7,7.98416716]
[1755970722959,1e-08,4752.8,4752.7,8.79314388]
[1755970724571,1e-08,4752.8,4752.7,5.152]
[1755970724771,0.09900001,4752.8,4752.7,5.152]
[1755970725175,1e-08,4752.8,4752.7,7.55496716]
[1755970725476,1e-08,4752.8,4752.7,7.25606716]
[1755970726177,1e-08,4752.8,4752.7,5.152]
[1755970727287,0.09900001,4752.8,4752.7,5.152]
[1755970730612,1e-08,4752.8,4752.7,5.152]
[1755970731805,1e-08,4752.8,4752.7,8.03756716]
[1755970732613,1e-08,4752.8,4752.7,5.9335]
[1755970732816,1e-08,4752.8,4752.7,8.03756716]
[1755970734816,1.28892801,4752.8,4752.7,8.03756716]
[1755970735878,1.28892801,4752.8,4752.7,9.06239895]
[1755970739803,1.28892801,4752.8,4752.7,9.06139895]
[1755970742793,1.28892801,4752.8,4752.7,8.59499895]
[1755970743202,1.28892801,4752.8,4752.7,9.06139895]
[1755970744120,1.28892801,4752.8,4752.7,8.27989895]
[1755970744312,1.28892801,4752.8,4752.7,9.06139895]
[1755970744508,1.59952801,4752.8,4752.7,1.618]
[1755970744708,1.59952801,4752.8,4752.7,7.25506716]
[1755970748427,1.59952801,4752.8,4752.7,5.151]
[1755970748636,1.59952801,4752.8,4752.7,1.618]
[1755970748839,1.59952801,4752.8,4752.7,5.151]
[1755970749414,1.59952801,4752.8,4752.7,7.25506716]
[1755970750225,1.59952801,4752.8,4752.7,5.151]
[1755970750426,1.59952801,4752.8,4752.7,7.25506716]
[1755970751319,1.59952801,4752.8,4752.7,5.151]
[1755970751940,1.59952801,4752.8,4752.7,7.25506716]
[1755970752139,1.59952801,4752.8,4752.7,5.151]
[1755970752365,1.59952801,4752.8,4752.7,1.618]
[1755970752526,1.59952801,4752.8,4752.7,5.151]
[1755970753423,1.28892801,4752.8,4752.7,8.03656716]
[1755970754692,1.28892801,4752.8,4752.7,7.72146716]
[1755970754849,1.28892801,4752.8,4752.7,7.25506716]
[1755970756178,1.28892801,4752.8,4752.7,5.151]
[1755970756476,1.32952801,4752.8,4752.7,5.151]
[1755970757244,1.28892801,4752.8,4752.7,7.25506716]
[1755970757875,1.28892801,4752.8,4752.7,8.03656716]
[1755970763901,1.28892801,4752.8,4752.7,7.57016716]
[1755970764100,1.28892801,4752.8,4752.7,7.25506716]
[1755970765504,1.28892801,4752.8,4752.7,3.72206716]
[1755970765676,1.28892801,4752.8,4752.7,5.15]
[1755970766103,1.28892801,4752.8,4752.7,7.25406716]
[1755970766460,1.28892801,4752.8,4752.7,5.15]
[1755970766665,1.28892801,4752.8,4752.7,7.25406716]
[1755970767890,1.28892801,4752.8,4752.7,7.56766716]
[1755970768096,1.28892801,4752.8,4752.7,8.68128112]
[1755970770180,1.28892801,4752.8,4752.7,8.78688112]
[1755970776790,1.28892801,4752.8,4752.7,8.78588112]
[1755970777908,1.28892801,4752.8,4752.7,5.25488112]
[1755970778112,1.28892801,4752.8,4752.7,8.78588112]
[1755970787833,1.59252801,4752.8,4752.7,3.82766716]
[1755970788036,1.59252801,4752.8,4752.7,7.35766716]
[1755970788404,1.59252801,4752.8,4752.7,3.82766716]
[1755970788603,1.59252801,4752.8,4752.7,7.35766716]
[1755970793134,1.28892801,4752.8,4752.7,8.10286716]
[1755970793332,1.28892801,4752.8,4752.7,9.12366811]
[1755970800260,1.29162801,4752.8,4752.7,3.82766716]
[1755970800569,1.28892801,4752.8,4752.7,7.35766716]
[1755970800741,1.28892801,4752.8,4752.7,8.10286716]
[1755970802341,1.28892801,4752.8,4752.7,7.35766716]
[1755970803170,1.28892801,4752.8,4752.7,8.10286716]
[1755970804369,1.28892801,4752.8,4752.7,7.35766716]
[1755970809972,1.28892801,4752.8,4752.7,7.79976716]
[1755970810677,1.28892801,4752.8,4752.7,7.35766716]
[1755970811180,1.28892801,4752.8,4752.7,7.79976716]
[1755970811675,1.28892801,4752.8,4752.7,8.10286716]
[1755970811875,1.28892801,4752.8,4752.7,8.987757]
[1755970812079,1.28892801,4752.8,4752.7,9.093357]
[1755970820659,1.28892801,4752.8,4752.7,9.753357]
[1755970820865,1.28892801,4752.8,4752.7,15.54710117]
[1755970821111,1.28892801,4752.8,4752.7,18.54710117]
[1755970821292,1.28892801,4752.8,4752.7,19.17927717]
[1755970821465,1e-08,4752.8,4752.7,19.17927717]
[1755970825294,1e-08,4752.8,4752.7,9.110333]
[1755970825480,1e-08,4752.8,4752.7,16.44871133]
[1755970825672,1e-08,4752.8,4752.7,16.88801133]
[1755970826373,1e-08,4752.8,4752.7,16.97230833]
[1755970826687,1e-08,4752.8,4752.7,17.63230833]
[1755970829186,1e-08,4752.8,4752.7,16.23270833]
[1755970829384,1e-08,4752.8,4752.7,12.70570833]
[1755970829588,1e-08,4752.8,4752.7,17.75772228]
[1755970829788,1e-08,4752.8,4752.7,18.19702228]
[1755970830709,0.09900001,4752.8,4752.7,14.23072228]
[1755970830878,0.09900001,4752.8,4752.7,17.75772228]
[1755970832709,1e-08,4752.8,4752.7,17.75772228]
[1755970836013,1e-08,4752.8,4752.7,18.49732228]
[1755970838215,1e-08,4752.8,4752.7,19.05172228]
[1755970838515,1e-08,4752.8,4752.7,19.15732228]
[1755970840392,1e-08,4752.8,4752.7,20.43787178]
[1755970844689,1e-08,4752.8,4752.7,20.74550755]
[1755970847627,1e-08,4752.8,4752.7,20.43787178]
[1755970853619,1e-08,4752.8,4752.7,19.99857178]
[1755970853838,1e-08,4752.8,4752.7,20.45727178]
[1755970859422,1e-08,4752.8,4752.7,20.45527178]
[1755970860445,1e-08,4752.8,4752.7,19.17284289]
[1755970862536,1e-08,4752.8,4752.7,15.64784289]
[1755970862732,1e-08,4752.8,4752.7,19.17284289]
[1755970864660,0.00200001,4752.8,4752.7,19.17284289]
[1755970868360,0.00200001,4752.8,4752.7,18.41384289]
[1755970868571,0.10100001,4752.8,4752.7,18.41384289]
[1755970868741,0.36950001,4752.8,4752.7,10.43596416]
[1755970869065,0.36950001,4752.8,4752.7,10.35166716]
[1755970869967,0.36950001,4752.8,4752.7,6.82766716]
[1755970870175,0.36950001,4752.8,4752.7,10.35166716]
[1755970871162,0.36950001,4752.8,4752.7,7.35166716]
[1755970873664,0.10100001,4752.8,4752.7,8.33429941]
[1755970873865,1e-08,4752.8,4752.7,18.54806419]
[1755970874642,1e-08,4752.8,4752.7,18.91756419]
[1755970876371,1e-08,4752.8,4752.7,13.12569941]
[1755970876759,1e-08,4752.8,4752.7,12.36379941]
[1755970876960,1e-08,4752.8,4752.7,12.82249941]
[1755970877264,0.25950001,4753.7,4753.6,2.10366879]
[1755970877447,0.35850001,4753.7,4753.6,7.24466879]
[1755970877643,0.099,4753.7,4753.6,7.34946879]
[1755970878266,0.099,4753.7,4753.6,7.67862579]
[1755970884654,0.022,4753.8,4753.7,2.10362454]
[1755970884851,0.022,4753.8,4753.7,3.63718292]
[1755970885100,0.022,4753.8,4753.7,4.07548292]
[1755970885492,0.022,4753.8,4753.7,4.35498292]
[1755970885989,0.022,4753.8,4753.7,3.91668292]
[1755970886199,0.022,4753.8,4753.7,12.09033331]
[1755970887058,1e-08,4753.8,4753.7,15.09033331]
[1755970887255,1e-08,4753.8,4753.7,15.39796908]
[1755970888356,1e-08,4753.8,4753.7,15.09033331]
[1755970889191,1e-08,4753.8,4753.7,18.61333331]
[1755970891803,1e-08,4753.8,4753.7,7.57668292]
[1755970891991,1e-08,4753.8,4753.7,11.53798292]
[1755970898014,1e-08,4753.8,4753.7,11.95041869]
[1755970900022,1e-08,4753.8,4753.7,11.64278292]
[1755970906221,1e-08,4753.8,4753.7,11.64078292]
[1755970907302,0.09900001,4753.8,4753.7,10.88888292]
[1755970908827,0.09900001,4753.8,4753.7,15.13888292]
[1755970911024,0.09900001,4753.8,4753.7,11.61788292]
[1755970911200,1e-08,4753.8,4753.7,15.13888292]
[1755970911599,1e-08,4753.8,4753.7,2.38312454]
[1755970911800,0.35680001,4753.8,4753.7,5.62462454]
[1755970913425,0.35680001,4753.8,4753.7,3.521]
[1755970916337,0.35680001,4753.8,4753.7,5.62462454]
[1755970917304,0.09900001,4753.8,4753.7,5.62462454]
[1755970920414,1e-08,4753.8,4753.7,6.37722454]
[1755970920609,1e-08,4753.8,4753.7,6.63441782]
[1755970920807,1e-08,4753.8,4753.7,5.62462454]
[1755970921647,1e-08,4753.8,4753.7,5.72942454]
[1755970923447,1e-08,4753.8,4753.7,6.48202454]
[1755970923610,1e-08,4753.8,4753.7,9.48202454]
[1755970923810,1e-08,4753.8,4753.7,10.14202454]
[1755970924042,1e-08,4753.8,4753.7,11.78779782]
[1755970927442,1e-08,4753.8,4753.7,11.03519782]
[1755970927651,0.25940001,4753.8,4753.7,8.72942454]
[1755970928247,1e-08,4753.8,4753.7,8.72942454]
[1755970930882,0.29730001,4753.8,4753.7,8.72942454]
[1755970933880,1e-08,4753.8,4753.7,9.04142454]
[1755970934091,1e-08,4753.8,4753.7,10.01406642]
[1755970934291,0.29730001,4753.8,4753.7,10.01406642]
[1755970935559,1e-08,4753.8,4753.7,10.76666642]
[1755970936567,1e-08,4753.8,4753.7,11.42666642]
[1755970936977,1e-08,4753.8,4753.7,11.51093842]
[1755970937505,1e-08,4753.8,4753.7,6.57733842]
[1755970937668,0.29730001,4753.8,4753.7,8.72842454]
[1755970938364,1e-08,4753.8,4753.7,9.48102454]
[1755970938963,1e-08,4753.8,4753.7,5.20842454]
[1755970939313,0.35680001,4753.8,4753.5,3.52]
[1755970939597,0.35680001,4753.8,4753.6,3.52]
[1755970939802,0.2578,4753.7,4753.6,3.52]
[1755970939987,0.3584,4753.7,4753.6,3.52]
[1755970942390,0.1006,4753.7,4753.6,5.62366879]
[1755970942700,1e-08,4753.8,4753.7,2.10362454]
[1755970942903,0.06150001,4753.8,4753.7,2.10362454]
[1755970943767,0.06150001,4753.8,4753.7,2.17242454]
[1755970944419,1e-08,4753.8,4753.7,2.17242454]
[1755970946814,0.06150001,4753.8,4753.7,2.17242454]
[1755970947923,1e-08,4753.8,4753.7,2.17242454]
[1755970948597,1e-08,4753.8,4753.7,0.0688]
[1755970949335,1e-08,4753.8,4753.7,2.27722454]
[1755970953934,1e-08,4753.8,4753.7,0.1736]
[1755970954344,1e-08,4753.8,4753.7,2.27722454]
[1755970954939,1e-08,4753.8,4753.7,0.1736]
[1755970955809,1e-08,4753.8,4753.7,2.27722454]
[1755970957235,1e-08,4753.8,4753.7,0.1736]
[1755970957439,1e-08,4753.8,4753.7,2.27722454]
[1755970958252,1e-08,4753.8,4753.7,2.71332454]
[1755970958934,1e-08,4753.8,4753.7,2.27722454]
[1755970959314,1e-08,4753.8,4753.7,2.71332454]
[1755970959742,1e-08,4753.8,4753.7,3.01102454]
[1755970959945,1e-08,4753.8,4753.7,0.1736]
[1755970960810,1e-08,4753.8,4753.7,2.27722454]
[1755970961206,1e-08,4753.8,4753.7,2.71332454]
[1755970962646,1e-08,4753.8,4753.7,3.01102454]
[1755970964043,1e-08,4753.8,4753.7,2.27722454]
[1755970964748,0.09900001,4753.8,4753.7,0.1736]
[1755970965544,0.09900001,4753.8,4753.7,3.6936]
[1755970968452,1e-08,4753.8,4753.7,3.6936]
[1755970970538,0.09900001,4753.8,4753.7,3.6936]
[1755970970864,0.09900001,4753.8,4753.7,3.6926]
[1755970972367,1e-08,4753.8,4753.7,3.6926]
[1755970972674,1e-08,4753.8,4753.7,4.442]
[1755970973044,1e-08,4753.8,4753.7,3.6926]
[1755970973665,0.00260001,4753.8,4753.7,3.6926]
[1755970975941,1e-08,4753.8,4753.7,3.6926]
[1755970976274,1e-08,4753.8,4753.7,5.79622454]
[1755970976775,1e-08,4753.8,4753.7,6.23382454]
[1755970980595,1e-08,4753.8,4753.7,6.54562454]